bitfinex-derivatives/quotes_BTCF0:USTF0_20241125
["timestamp","ask_amount","ask_price","bid_price","bid_amount"]
[1732552748063,0.02696796,96009.0,96008.0,0.18391722]
[1732552749767,0.01160306,96009.0,96008.0,0.15135778]
[1732552750070,0.01160306,96009.0,96005.0,0.00013227]
[1732552750263,0.00960306,96008.0,96006.0,0.20236]
[1732552750463,0.00960306,96007.0,96006.0,0.20236]
[1732552750769,0.002,96009.0,96006.0,0.20236]
[1732552751256,0.002,96009.0,96005.0,0.00013227]
[1732552751567,0.002,96009.0,96006.0,0.20236]
[1732552751762,0.001,96007.0,96006.0,0.20236]
[1732552752157,0.001,96007.0,96006.0,0.31248]
[1732552752358,0.002,96009.0,96006.0,0.51484]
[1732552752560,0.002,96009.0,96006.0,0.20236]
[1732552753066,0.001,96007.0,96005.0,0.00013227]
[1732552753470,0.001,96007.0,96006.0,0.20236]
[1732552753764,0.1235464,96008.0,96006.0,0.20236]
[1732552753965,0.002,96009.0,96005.0,0.00013227]
[1732552753966,0.1235464,96007.0,96005.0,0.00013227]
[1732552754168,0.1245464,96007.0,96006.0,0.20236]
[1732552754470,0.1245464,96007.0,96006.0,0.17891692]
[1732552754861,0.001,96007.0,96006.0,0.17891692]
[1732552755461,0.002,96007.0,96006.0,0.17891692]
[1732552756063,0.1255464,96007.0,96006.0,0.17891692]
[1732552756471,0.12545723,96007.0,96006.0,0.17891692]
[1732552756765,0.02764017,96007.0,96006.0,0.17891692]
[1732552757366,0.05937189,96007.0,96006.0,0.17891692]
[1732552757873,0.02764017,96007.0,96006.0,0.17891692]
[1732552758763,0.05937189,96007.0,96006.0,0.12031003]
[1732552758972,0.02764017,96007.0,96006.0,0.12031003]
[1732552759372,0.3608,96011.0,96006.0,0.43279003]
[1732552759373,0.15450546,96011.0,96006.0,0.43279003]
[1732552759673,0.02853137,96028.0,96026.0,0.052056]
[1732552759874,0.25079117,96034.0,96032.0,0.052052]
[1732552760080,0.0652,96047.0,96033.0,0.56316]
[1732552760270,0.00128,96045.0,96041.0,0.052047]
[1732552760574,0.00128,96045.0,96037.0,0.06152839]
[1732552760575,0.0652,96047.0,96042.0,0.052047]
[1732552761275,0.0652,96047.0,96037.0,0.06152839]
[1732552761477,0.0652,96047.0,96037.0,0.11357739]
[1732552762167,0.004,96045.0,96037.0,0.11357739]
[1732552762367,0.004,96045.0,96037.0,0.03127833]
[1732552762567,0.004,96045.0,96033.0,0.62352]
[1732552762568,0.004,96045.0,96033.0,0.56372]
[1732552762764,0.13674296,96034.0,96032.0,0.4382]
[1732552763066,0.26284296,96033.0,96032.0,0.4376]
[1732552763273,0.26284296,96033.0,96032.0,0.6408]
[1732552763482,0.26284296,96033.0,96032.0,0.67188142]
[1732552764171,0.26284296,96033.0,96016.0,0.18629763]
[1732552764475,0.13674296,96022.0,96020.0,0.09367408]
[1732552764782,0.13674296,96022.0,96017.0,0.2032]
[1732552765667,0.3608,96028.0,96018.0,0.2032]
[1732552765873,0.13674296,96028.0,96024.0,0.3608]
[1732552766175,0.13674296,96028.0,96026.0,0.052055]
[1732552766680,0.005,96033.0,96031.0,0.052053]
[1732552766974,0.005,96033.0,96032.0,0.564]
[1732552767173,0.3608,96050.0,96032.0,0.564]
[1732552767174,0.3608,96050.0,96034.0,0.052051]
[1732552767380,0.3608,96050.0,96032.0,0.564]
[1732552767381,0.13674296,96039.0,96035.0,0.05205]
[1732552767871,0.00143068,96037.0,96035.0,0.05205]
[1732552768667,0.00143068,96037.0,96032.0,0.56464]
[1732552768875,0.00143068,96035.0,96032.0,0.564]
[1732552769271,0.00143068,96035.0,96032.0,0.616052]
[1732552769576,0.00143068,96035.0,96034.0,0.052051]
[1732552769971,0.00143068,96035.0,96034.0,0.364451]
[1732552770171,0.00143068,96035.0,96034.0,0.425851]
[1732552770869,0.00143068,96035.0,96034.0,0.629011]
[1732552771178,0.00643068,96035.0,96034.0,0.629011]
[1732552771381,0.00843068,96035.0,96034.0,0.629011]
[1732552772076,0.00743068,96035.0,96034.0,0.630011]
[1732552772774,0.00643068,96035.0,96034.0,0.629011]
[1732552773074,0.00843068,96035.0,96034.0,0.629011]
[1732552773283,0.1852493,96055.0,96034.0,0.87696]
[1732552773480,0.1852493,96062.0,96052.0,0.052042]
[1732552773670,0.1852493,96066.0,96053.0,0.20316]
[1732552774370,0.118,96067.0,96052.0,0.052042]
[1732552774573,0.00511728,96054.0,96053.0,0.20316]
[1732552774772,0.00711728,96054.0,96053.0,0.20316]
[1732552775376,0.00511728,96054.0,96053.0,0.20316]
[1732552775587,0.00711728,96054.0,96053.0,0.20316]
[1732552776281,0.00711728,96054.0,96052.0,0.08398192]
[1732552776282,0.00711728,96054.0,96052.0,0.03193992]
[1732552776483,0.00711728,96054.0,96048.0,0.3608]
[1732552776484,0.13674296,96053.0,96048.0,0.3608]
[1732552776778,0.13674296,96053.0,96018.0,0.31107539]
[1732552776779,0.3608,96052.0,96027.0,0.43744]
[1732552776976,0.3608,96035.0,96030.0,0.09367408]
[1732552777182,0.1837,96034.0,96030.0,0.09367408]
[1732552777374,0.1837,96034.0,96027.0,0.33171977]
[1732552777375,0.0636,96034.0,96027.0,0.33171977]
[1732552777572,0.0636,96034.0,96028.0,0.20316]
[1732552777777,0.0636,96034.0,96029.0,0.20316]
[1732552778277,0.0676,96034.0,96029.0,0.20316]
[1732552778675,0.0676,96034.0,96030.0,0.20316]
[1732552779074,0.0696,96034.0,96030.0,0.20316]
[1732552779977,0.0696,96034.0,96031.0,0.20316]
[1732552780668,0.0676,96034.0,96031.0,0.20316]
[1732552780872,0.0696,96034.0,96031.0,0.20316]
[1732552781469,0.0676,96034.0,96027.0,0.33171977]
[1732552781785,0.0696,96034.0,96028.0,0.20316]
[1732552783395,0.052054,96029.0,96027.0,0.33171977]
[1732552783575,0.0609,96028.0,96027.0,0.03102273]
[1732552783774,0.0609,96028.0,96021.0,0.20316]
[1732552784086,0.0619,96027.0,96022.0,0.255218]
[1732552784577,0.0619,96027.0,96022.0,0.20316]
[1732552785271,0.4247,96027.0,96023.0,0.20316]
[1732552785782,0.4247,96027.0,96021.0,0.052058]
[1732552785783,0.4247,96027.0,96024.0,0.20316]
[1732552786282,0.4247,96027.0,96020.0,0.12451619]
[1732552786583,0.4247,96027.0,96020.0,0.03084211]
[1732552786785,0.4247,96027.0,96019.0,0.20316]
[1732552787286,0.4287,96027.0,96019.0,0.20316]
[1732552787580,0.4247,96027.0,96019.0,0.20316]
[1732552787779,0.4287,96027.0,96019.0,0.20316]
[1732552788672,0.4287,96027.0,96015.0,0.052062]
[1732552788875,0.4287,96027.0,96016.0,0.20316]
[1732552788876,0.052057,96023.0,96016.0,0.20316]
[1732552789173,0.42602,96027.0,96016.0,0.20316]
[1732552789484,0.4287,96027.0,96016.0,0.255221]
[1732552789685,0.4287,96027.0,96017.0,0.20316]
[1732552790179,0.15446489,96020.0,96017.0,0.20316]
[1732552790383,0.15446489,96021.0,96017.0,0.20316]
[1732552791876,0.15646489,96021.0,96017.0,0.20316]
[1732552792077,0.002,96021.0,96017.0,0.20316]
[1732552793073,0.006,96021.0,96017.0,0.20316]
[1732552793482,0.006,96021.0,96020.0,0.052059]
[1732552794481,0.002,96021.0,96020.0,0.052059]
[1732552794778,0.15446489,96038.0,96020.0,0.31244]
[1732552795085,0.15446489,96042.0,96028.0,0.09367408]
[1732552795279,0.15446489,96045.0,96029.0,0.63968]
[1732552795482,0.3608,96035.0,96030.0,0.09367408]
[1732552796078,0.3608,96035.0,96029.0,0.63968]
[1732552796283,0.15446489,96033.0,96029.0,0.41408313]
[1732552796481,0.0599,96032.0,96030.0,0.20216]
[1732552796884,0.21436489,96032.0,96030.0,0.20216]
[1732552797088,0.0599,96032.0,96030.0,0.20216]
[1732552797889,0.0619,96032.0,96030.0,0.20216]
[1732552799588,0.0659,96032.0,96031.0,0.20216]
[1732552800581,0.002,96032.0,96031.0,0.20216]
[1732552800788,0.006,96032.0,96031.0,0.254213]
[1732552800991,0.17304901,96046.0,96032.0,0.052052]
[1732552801294,0.002,96032.0,96031.0,0.254213]
[1732552801785,0.002,96032.0,96029.0,0.4460201]
[1732552801988,0.002,96032.0,96029.0,0.4454601]
[1732552802179,0.052049,96038.0,96030.0,0.20216]
[1732552802781,0.052051,96035.0,96029.0,0.4460201]
[1732552803084,0.052051,96035.0,96030.0,0.20216]
[1732552803482,0.052051,96035.0,96029.0,0.4460201]
[1732552803779,0.052051,96035.0,96030.0,0.20216]
[1732552803986,0.002,96032.0,96030.0,0.20216]
[1732552804593,0.002,96032.0,96030.0,0.254213]
[1732552804790,0.004,96035.0,96030.0,0.20216]
[1732552805490,0.15446489,96034.0,96030.0,0.20216]
[1732552805695,0.002,96032.0,96030.0,0.20216]
[1732552805992,0.15446489,96031.0,96029.0,0.4454601]
[1732552806197,0.20509361,96031.0,96030.0,0.20216]
[1732552806382,0.15459838,96031.0,96030.0,0.254214]
[1732552806694,0.005,96032.0,96030.0,0.316314]
[1732552806886,0.005,96032.0,96031.0,0.059]
[1732552807079,0.005,96032.0,96030.0,0.20216]
[1732552807284,0.15759838,96031.0,96030.0,0.20216]
[1732552807495,0.11702521,96031.0,96029.0,0.4454601]
[1732552807692,0.05062565,96030.0,96029.0,0.6476201]
[1732552808395,0.1852493,96030.0,96029.0,0.42888817]
[1732552808583,0.05062565,96030.0,96029.0,0.42888817]
[1732552808890,0.05262565,96030.0,96029.0,0.42888817]
[1732552809284,0.15659043,96030.0,96029.0,0.42888817]
[1732552809487,0.05262865,96030.0,96029.0,0.42888817]
[1732552809682,0.002,96030.0,96029.0,0.42888817]
[1732552809881,0.0556286,96030.0,96029.0,0.42888817]
[1732552810286,0.005,96030.0,96029.0,0.42888817]
[1732552810485,0.1596005,96030.0,96029.0,0.42888817]
[1732552810991,0.005,96030.0,96029.0,0.48618817]
[1732552811291,0.005,96030.0,96029.0,0.54628817]
[1732552811494,0.005,96030.0,96029.0,0.85868817]
[1732552811790,0.1546005,96041.0,96029.0,0.85868817]
[1732552811992,0.1546005,96046.0,96040.0,0.3608]
[1732552812185,0.1546005,96047.0,96041.0,0.20216]
[1732552812385,0.1546005,96045.0,96041.0,0.20216]
[1732552812594,0.1546005,96046.0,96041.0,0.20216]
[1732552812992,0.1546005,96049.0,96043.0,0.052046]
[1732552813290,0.18536658,96054.0,96043.0,0.052046]
[1732552813291,0.003,96047.0,96043.0,0.052046]
[1732552813687,0.003,96047.0,96041.0,0.38880523]
[1732552813892,0.003,96047.0,96040.0,0.3608]
[1732552813893,0.003,96046.0,96040.0,0.3608]
[1732552814102,0.003,96046.0,96029.0,0.1959112]
[1732552814103,0.3608,96043.0,96034.0,0.20216]
[1732552814688,0.002,96041.0,96034.0,0.20216]
[1732552815102,0.002,96041.0,96034.0,0.03181424]
[1732552815103,0.0581,96040.0,96034.0,0.03181424]
[1732552815286,0.0581,96040.0,96035.0,0.20216]
[1732552815496,0.0581,96040.0,96035.0,0.38880523]
[1732552815890,0.0581,96040.0,96037.0,0.3608]
[1732552816294,0.0581,96040.0,96037.0,0.412849]
[1732552816600,0.0591,96040.0,96037.0,0.412849]
[1732552817185,0.0591,96040.0,96038.0,0.052049]
[1732552817400,0.001,96040.0,96038.0,0.052049]
[1732552817693,0.004,96040.0,96038.0,0.052049]
[1732552817894,0.003,96040.0,96038.0,0.052049]
[1732552818090,0.005,96040.0,96038.0,0.052049]
[1732552818401,0.005,96040.0,96037.0,0.3608]
[1732552818697,0.005,96040.0,96037.0,0.412849]
[1732552818893,0.005,96040.0,96038.0,0.052049]
[1732552820100,0.003,96040.0,96038.0,0.052049]
[1732552820395,0.12349923,96053.0,96052.0,0.052042]
[1732552820596,0.00011728,96054.0,96052.0,0.052042]
[1732552820597,0.00011728,96054.0,96052.0,0.254202]
[1732552820988,0.00011728,96054.0,96053.0,0.059]
[1732552822594,0.00011728,96054.0,96053.0,0.09026957]
[1732552823599,0.00111728,96054.0,96053.0,0.03126957]
[1732552823792,0.00111728,96054.0,96053.0,0.253881]
[1732552825101,0.00011728,96054.0,96053.0,0.253881]
[1732552825301,0.00111728,96054.0,96053.0,0.253881]
[1732552826593,0.00111728,96054.0,96053.0,0.20184]
[1732552828799,0.05921728,96054.0,96053.0,0.20184]
[1732552830408,0.00111728,96054.0,96053.0,0.20184]
[1732552831814,0.00111728,96054.0,96052.0,0.39186323]
[1732552832110,0.1546005,96053.0,96052.0,0.23286323]
[1732552832415,0.1206,96053.0,96052.0,0.04541676]
[1732552832706,0.17121872,96053.0,96052.0,0.0319522]
[1732552833009,0.17121872,96053.0,96051.0,0.2018]
[1732552833309,0.05062015,96052.0,96051.0,0.2018]
[1732552833502,0.05062015,96052.0,96051.0,0.03134926]
[1732552833706,0.05062015,96052.0,96050.0,0.2018]
[1732552834407,0.052043,96050.0,96045.0,0.2018]
[1732552834611,0.15421254,96048.0,96044.0,0.12466096]
[1732552834799,0.15421254,96046.0,96045.0,0.2018]
[1732552835111,0.0629,96049.0,96045.0,0.2018]
[1732552835307,0.05062238,96048.0,96045.0,0.2018]
[1732552835507,0.0629,96049.0,96045.0,0.2018]
[1732552836922,0.114944,96049.0,96045.0,0.2018]
[1732552837100,0.0629,96049.0,96045.0,0.2018]
[1732552838011,0.001,96050.0,96045.0,0.2018]
[1732552838310,0.001,96050.0,96047.0,0.18689628]
[1732552838616,0.001,96050.0,96049.0,0.30090331]
[1732552839006,0.001,96050.0,96048.0,0.24886031]
[1732552839213,0.001,96049.0,96047.0,0.24886031]
[1732552839412,0.001,96049.0,96048.0,0.24886031]
[1732552839602,0.001,96049.0,96047.0,0.052044]
[1732552839914,0.001,96049.0,96046.0,0.3608]
[1732552840109,0.001,96050.0,96046.0,0.3608]
[1732552840312,0.001,96050.0,96049.0,0.2492481]
[1732552840610,0.001,96050.0,96046.0,0.3608]
[1732552840813,0.00011728,96054.0,96047.0,0.052044]
[1732552841012,0.001,96049.0,96047.0,0.052044]
[1732552841607,0.001,96049.0,96046.0,0.3608]
[1732552842314,0.00011728,96054.0,96046.0,0.412844]
[1732552842513,0.001,96050.0,96046.0,0.412844]
[1732552843018,0.001,96050.0,96046.0,0.3608]
[1732552843204,0.0573,96061.0,96049.0,0.052043]
[1732552843403,0.0573,96061.0,96051.0,0.09367408]
[1732552843711,0.09264612,96056.0,96052.0,0.00325406]
[1732552843910,0.09264612,96056.0,96055.0,0.3608]
[1732552844211,0.09264171,96056.0,96055.0,0.3608]
[1732552844510,0.0573,96061.0,96055.0,0.3608]
[1732552844717,0.052039,96057.0,96056.0,0.2018]
[1732552844925,0.052043,96050.0,96047.0,0.3608]
[1732552845103,0.052043,96050.0,96040.0,0.09367408]
[1732552845104,0.51521175,96053.0,96048.0,0.2018]
[1732552845305,0.0574,96049.0,96048.0,0.2018]
[1732552846510,0.0584,96049.0,96048.0,0.2018]
[1732552847513,0.110443,96049.0,96048.0,0.2018]
[1732552847708,0.110443,96049.0,96040.0,0.03078404]
[1732552847709,0.0584,96049.0,96040.0,0.03078404]
[1732552847906,0.15441175,96044.0,96038.0,0.2018]
[1732552848214,0.15441175,96043.0,96038.0,0.2018]
[1732552848412,0.0581,96042.0,96038.0,0.2018]
[1732552848606,0.15441175,96041.0,96038.0,0.2018]
[1732552849020,0.21251175,96042.0,96038.0,0.20184]
[1732552849212,0.15441175,96040.0,96038.0,0.21084]
[1732552849411,0.15441175,96041.0,96038.0,0.21084]
[1732552849614,0.21251175,96042.0,96038.0,0.21084]
[1732552849916,0.15441175,96041.0,96038.0,0.21084]
[1732552850116,0.15441175,96040.0,96038.0,0.21084]
[1732552850318,0.0581,96042.0,96037.0,0.03134949]
[1732552850518,0.0581,96042.0,96036.0,0.20184]
[1732552850519,0.09261262,96039.0,96038.0,0.009]
[1732552850718,0.052048,96040.0,96038.0,0.009]
[1732552851913,0.09259707,96039.0,96038.0,0.009]
[1732552852109,0.052048,96040.0,96038.0,0.009]
[1732552852318,0.001,96041.0,96038.0,0.009]
[1732552852824,0.09258487,96040.0,96038.0,0.018]
[1732552853123,0.110147,96042.0,96038.0,0.009]
[1732552853320,0.001,96039.0,96038.0,0.018]
[1732552853522,0.001,96039.0,96038.0,0.009]
[1732552854120,0.001,96040.0,96032.0,0.18698077]
[1732552854419,0.09259662,96038.0,96033.0,0.20136]
[1732552854623,0.09259662,96039.0,96033.0,0.20136]
[1732552854826,0.09359662,96040.0,96034.0,0.20136]
[1732552855212,0.09359662,96040.0,96037.0,0.3608]
[1732552855213,0.001,96040.0,96037.0,0.3608]
[1732552855613,0.001,96039.0,96038.0,0.18698077]
[1732552855814,0.001,96039.0,96037.0,0.3608]
[1732552856114,0.001,96039.0,96038.0,0.18694274]
[1732552856311,0.09259662,96050.0,96038.0,0.18694274]
[1732552856517,0.09259662,96049.0,96040.0,0.09367408]
[1732552857213,0.09259662,96048.0,96040.0,0.09367408]
[1732552857414,0.09259662,96049.0,96040.0,0.09367408]
[1732552857614,0.15435829,96048.0,96040.0,0.09367408]
[1732552857816,0.15435829,96050.0,96040.0,0.09367408]
[1732552858315,0.15435829,96049.0,96040.0,0.09367408]
[1732552858536,0.15435829,96046.0,96040.0,0.09367408]
[1732552858725,0.15435829,96046.0,96040.0,0.12480638]
[1732552859025,0.15435829,96047.0,96040.0,0.12480638]
[1732552859536,0.15435829,96045.0,96040.0,0.0311323]
[1732552859739,0.15435829,96044.0,96034.0,0.20136]
[1732552860038,0.0925242,96035.0,96034.0,0.23185484]
[1732552860539,0.001,96047.0,96046.0,0.052045]
[1732552860742,0.3608,96069.0,96046.0,0.614245]
[1732552860743,0.15435829,96055.0,96046.0,0.614245]
[1732552860931,0.15435829,96056.0,96047.0,0.0596]
[1732552861133,0.15435829,96060.0,96047.0,0.0596]
[1732552861333,0.15435829,96061.0,96047.0,0.0596]
[1732552861632,0.15435829,96059.0,96051.0,0.14571608]
[1732552861834,0.15435829,96060.0,96051.0,0.09367408]
[1732552862132,0.15435829,96063.0,96052.0,0.052041]
[1732552862336,0.15443167,96064.0,96052.0,0.052041]
[1732552862544,7.338e-05,96064.0,96052.0,0.052041]
[1732552862734,0.001,96055.0,96053.0,0.052041]
[1732552863136,7.338e-05,96064.0,96063.0,0.052036]
[1732552863432,0.06075829,96074.0,96067.0,0.052034]
[1732552863631,0.00132,96090.0,96087.0,0.052022]
[1732552863632,0.1865693,96090.0,96087.0,0.052022]
[1732552863833,0.05876,96096.0,96089.0,0.052021]
[1732552864032,0.0574,96096.0,96090.0,0.20136]
[1732552864233,0.0574,96096.0,96090.0,0.253381]
[1732552864435,0.057,96104.0,96093.0,0.052019]
[1732552864636,0.057,96104.0,96090.0,0.20136]
[1732552864637,0.00012553,96105.0,96101.0,0.3608]
[1732552864835,0.00012553,96105.0,96102.0,0.20136]
[1732552865030,0.00012553,96105.0,96088.0,0.3608]
[1732552865231,0.3608,96090.0,96081.0,0.20136]
[1732552865436,0.0604,96089.0,96081.0,0.20136]
[1732552865733,0.052027,96079.0,96077.0,0.09347669]
[1732552866037,0.3608,96082.0,96067.0,0.00156114]
[1732552866242,0.3608,96069.0,96067.0,0.00156114]
[1732552866435,0.0604,96068.0,96067.0,0.03288786]
[1732552867442,0.0604,96068.0,96067.0,0.04188786]
[1732552867947,0.0604,96068.0,96053.0,0.20136]
[1732552868145,0.0604,96068.0,96050.0,0.14571608]
[1732552868338,0.0604,96068.0,96052.0,0.20136]
[1732552868534,0.0604,96068.0,96067.0,0.009]
[1732552868750,0.052036,96063.0,96048.0,0.20136]
[1732552868940,0.3608,96060.0,96054.0,0.03105217]
[1732552869133,0.3608,96060.0,96054.0,0.00912218]
[1732552869340,0.0591,96067.0,96057.0,0.052039]
[1732552869834,0.001,96063.0,96054.0,0.00912218]
[1732552870033,0.001,96063.0,96058.0,0.052038]
[1732552870340,0.002,96060.0,96054.0,0.00912218]
[1732552870540,0.002,96060.0,96054.0,0.00012218]
[1732552871543,0.002,96060.0,96058.0,0.052038]
[1732552871753,0.3608,96065.0,96054.0,0.00012218]
[1732552871945,0.3608,96065.0,96062.0,0.052036]
[1732552872144,0.3608,96065.0,96062.0,0.20136]
[1732552872444,0.001,96067.0,96062.0,0.20136]
[1732552872647,0.1183,96079.0,96062.0,0.20136]
[1732552873044,0.003,96065.0,96062.0,0.20136]
[1732552873939,0.3608,96063.0,96062.0,0.20136]
[1732552874142,0.3608,96063.0,96062.0,0.23278684]
[1732552874750,0.3608,96063.0,96062.0,0.03142684]
[1732552875046,0.3608,96063.0,96054.0,0.00012218]
[1732552875239,0.3638,96063.0,96054.0,0.00012218]
[1732552875843,0.3638,96063.0,96055.0,0.05204]
[1732552876053,0.3638,96063.0,96061.0,0.052036]
[1732552876347,0.3638,96063.0,96062.0,0.3608]
[1732552876348,0.001,96063.0,96062.0,0.3608]
[1732552876550,0.00156182,96080.0,96078.0,0.052027]
[1732552876752,0.00156182,96080.0,96079.0,0.20136]
[1732552878045,0.003,96080.0,96044.0,0.02082617]
[1732552878358,0.7216,96055.0,96020.0,0.14053589]
[1732552878651,0.7216,96055.0,96000.0,0.67789589]
[1732552878652,0.3608,96031.0,96013.0,0.00156225]
[1732552878849,0.3608,96016.0,96014.0,0.20136]
[1732552879041,0.3608,96016.0,96013.0,0.03336632]
[1732552879245,0.3608,96016.0,96014.0,0.20136]
[1732552879550,0.3608,96016.0,96014.0,0.20149332]
[1732552879856,0.3608,96016.0,96014.0,0.00013332]
[1732552880058,0.00012976,96020.0,96015.0,0.20136]
[1732552880240,0.00012976,96020.0,96014.0,0.00013332]
[1732552880441,0.00012976,96020.0,96015.0,0.20136]
[1732552880644,0.001,96016.0,96015.0,0.20136]
[1732552881242,0.00012976,96020.0,96015.0,0.20136]
[1732552881452,0.00112976,96020.0,96014.0,0.00113332]
[1732552881654,0.00112976,96020.0,96015.0,0.2008]
[1732552882349,0.001,96016.0,96015.0,0.2098]
[1732552882552,0.001,96016.0,96015.0,0.009]
[1732552882849,0.00112976,96020.0,96015.0,0.20984]
[1732552883052,0.001,96016.0,96015.0,0.01]
[1732552883240,0.3618,96016.0,96015.0,0.01]
[1732552883444,0.413861,96016.0,96015.0,0.001]
[1732552883643,0.414861,96016.0,96015.0,0.01]
[1732552883846,0.413861,96016.0,96015.0,0.009]
[1732552884045,0.3618,96016.0,96015.0,0.01]
[1732552885055,0.3628,96016.0,96015.0,0.001]
[1732552885757,0.3648,96016.0,96014.0,0.00013332]
[1732552886547,0.004,96016.0,96014.0,0.00013332]
[1732552886750,0.003,96016.0,96014.0,0.00113332]
[1732552887955,0.3608,96015.0,96014.0,0.00113332]
[1732552888158,0.412862,96015.0,96014.0,0.00113332]
[1732552888661,0.412862,96015.0,96014.0,0.01013332]
[1732552889050,0.412862,96015.0,96014.0,0.00913332]
[1732552889254,0.414862,96015.0,96014.0,0.01013332]
[1732552889452,0.414862,96015.0,96014.0,0.02013332]
[1732552889760,0.416862,96015.0,96014.0,0.01113332]
[1732552890056,0.416862,96015.0,96014.0,0.01]
[1732552890057,0.417862,96015.0,96014.0,0.01]
[1732552890859,0.414862,96015.0,96014.0,0.00189883]
[1732552891060,0.417862,96015.0,96014.0,0.00189883]
[1732552892360,0.414862,96015.0,96014.0,0.00189883]
[1732552892565,0.416862,96015.0,96014.0,0.00189883]
[1732552892758,0.414862,96015.0,96014.0,0.00189883]
[1732552892953,0.416862,96015.0,96014.0,0.00189883]
[1732552893557,0.416862,96015.0,96014.0,0.00029714]
[1732552896952,0.414862,96015.0,96014.0,0.00029714]
[1732552897155,0.415862,96015.0,96014.0,0.00029714]
[1732552899152,0.413862,96015.0,96014.0,0.00029714]
[1732552899357,0.415862,96015.0,96014.0,0.00029714]
[1732552900152,0.413862,96015.0,96014.0,0.00029714]
[1732552900353,0.56896073,96015.0,96014.0,0.00029714]
[1732552900763,0.415862,96015.0,96014.0,0.00029714]
[1732552901263,0.56896073,96015.0,96014.0,0.00029714]
[1732552902058,0.46551682,96015.0,96014.0,0.00029714]
[1732552902258,0.46651682,96015.0,96014.0,0.00029714]
[1732552902968,0.415862,96015.0,96014.0,0.00029714]
[1732552904064,0.46651665,96015.0,96014.0,0.00029714]
[1732552905866,0.46651665,96015.0,96014.0,5.102e-05]
[1732552906871,0.41445465,96015.0,96014.0,8.37e-06]
[1732552907071,0.46651665,96015.0,96014.0,8.37e-06]
[1732552907263,0.46651665,96015.0,96014.0,0.01]
[1732552907264,0.41445465,96015.0,96014.0,0.01]
[1732552907564,0.46651665,96015.0,96014.0,0.01]
[1732552908164,0.46651471,96015.0,96014.0,0.01]
[1732552909867,0.41445271,96015.0,96014.0,0.01]
[1732552910067,0.003,96015.0,96014.0,0.0703]
[1732552910268,0.05364247,96015.0,96014.0,0.0703]
[1732552910570,0.0536417,96015.0,96014.0,0.0703]
[1732552911573,0.54859611,96015.0,96006.0,0.09345107]
[1732552911867,0.0506417,96014.0,96010.0,0.052064]
[1732552912074,0.0506417,96014.0,96013.0,0.052063]
[1732552912271,0.0506417,96014.0,96013.0,0.252503]
[1732552912463,0.00428,96015.0,96013.0,0.20044]
[1732552912865,0.003,96015.0,96013.0,0.1769962]
[1732552913474,0.001,96014.0,96006.0,0.09345107]
[1732552913774,0.001,96014.0,96007.0,0.20044]
[1732552913775,0.12336271,96008.0,96007.0,0.20044]
[1732552914078,0.001,96014.0,96007.0,0.52292]
[1732552914268,0.0026,96021.0,96019.0,0.052059]
[1732552914576,0.18479611,96027.0,96020.0,0.54282485]
[1732552914769,0.18479611,96029.0,96026.0,0.3608]
[1732552915070,0.052049,96038.0,96021.0,0.20044]
[1732552915071,0.00897588,96028.0,96021.0,0.20044]
[1732552915268,0.00897588,96027.0,96021.0,0.20044]
[1732552915472,0.059,96033.0,96021.0,0.20044]
[1732552915671,0.18479611,96031.0,96021.0,0.20044]
[1732552915981,0.052055,96027.0,96021.0,0.23113049]
[1732552916270,0.05063667,96026.0,96021.0,0.23113049]
[1732552916474,0.00898163,96025.0,96021.0,0.23113049]
[1732552916769,0.00898163,96024.0,96021.0,0.23113049]
[1732552916970,0.00898163,96023.0,96021.0,0.23113049]
[1732552917165,0.00898163,96022.0,96021.0,0.23113049]
[1732552917373,0.3608,96028.0,96021.0,0.23113049]
[1732552917876,0.001,96024.0,96021.0,0.23113049]
[1732552918870,0.002,96024.0,96021.0,0.23113049]
[1732552919279,0.002,96024.0,96021.0,0.03069049]
[1732552919471,0.001,96024.0,96022.0,0.2004]
[1732552920173,0.053057,96024.0,96023.0,0.2004]
[1732552920365,0.055057,96024.0,96023.0,0.10923816]
[1732552920774,0.055057,96024.0,96015.0,0.2004]
[1732552920775,0.052058,96022.0,96015.0,0.2004]
[1732552920979,0.003,96024.0,96015.0,0.2004]
[1732552920980,0.0528,96023.0,96015.0,0.2004]
[1732552921274,0.05206,96018.0,96015.0,0.2004]
[1732552922280,0.052062,96015.0,96014.0,0.2004]
[1732552923674,0.054062,96015.0,96014.0,0.2004]
[1732552924477,0.054062,96015.0,96013.0,0.0307405]
[1732552924669,0.002,96015.0,96011.0,0.2004]
[1732552924873,0.052063,96013.0,96011.0,0.2004]
[1732552925580,0.052066,96008.0,96006.0,0.09373431]
[1732552925779,0.052066,96008.0,96006.0,0.03553431]
[1732552926783,0.054066,96008.0,96006.0,0.03553431]
[1732552927875,0.055066,96008.0,96006.0,0.03553431]
[1732552928473,0.05065254,96007.0,96006.0,0.03553431]
[1732552928983,0.05065814,96007.0,96006.0,0.03553431]
[1732552929287,0.05065814,96007.0,96006.0,0.00498913]
[1732552929477,0.18489788,96007.0,96002.0,0.00010715]
[1732552929684,0.3608,96003.0,96002.0,0.03161093]
[1732552929991,0.41145814,96003.0,96002.0,0.00010715]
[1732552930793,0.46352614,96003.0,96002.0,0.00010715]
[1732552931686,0.46352614,96003.0,95994.0,0.2514]
[1732552931687,0.052069,96001.0,95994.0,0.2514]
[1732552931892,0.052073,95995.0,95994.0,0.2514]
[1732552932295,0.052073,95995.0,95994.0,0.56392]
[1732552932498,0.052073,95995.0,95994.0,0.50529726]
[1732552932709,0.052073,95995.0,95994.0,0.53659636]
[1732552933403,0.053073,95995.0,95994.0,0.53659636]
[1732552933699,0.10372775,95995.0,95994.0,0.33619636]
[1732552933895,0.10372775,95995.0,95994.0,0.53663636]
[1732552934099,0.053073,95995.0,95994.0,0.33619636]
[1732552934400,0.46452844,95995.0,95994.0,0.33619636]
[1732552934696,0.65042632,95995.0,95994.0,0.53663636]